bitfinex/quotes_SOLUSD_20220226
["timestamp","ask_amount","ask_price","bid_price","bid_amount"]
[1645862395726,2.41491679,92.148,92.024,24.0715]
[1645862395924,23.73281011,92.148,92.024,24.0715]
[1645862396125,4.343,92.147,92.024,24.0715]
[1645862396325,65.43,92.146,92.024,24.0715]
[1645862396524,4.343,92.145,92.024,24.0715]
[1645862396730,16.2973,92.13,92.024,24.0715]
[1645862397129,2.41491679,92.129,92.024,24.0715]
[1645862397729,16.2985,92.12,92.024,24.0715]
[1645862399632,16.2956,92.14,92.025,112.41292427]
[1645862399932,4.343,92.174,92.025,137.3327587]
[1645862400131,69.773,92.186,92.027,109.3]
[1645862400339,4.343,92.186,92.028,0.25]
[1645862400541,48.3388,92.187,92.029,109.3]
[1645862400740,48.3388,92.187,92.03,0.25]
[1645862400942,4.342,92.174,92.03,0.25]
[1645862401133,4.342,92.174,92.031,109.3]
[1645862401336,4.342,92.179,92.032,0.25]
[1645862401558,54.3065,92.18,92.041,109.3]
[1645862401755,54.3065,92.18,92.043,109.3]
[1645862401956,54.3065,92.18,92.044,0.25]
[1645862402156,16.2879,92.17,92.045,109.3]
[1645862402356,16.2879,92.17,92.046,0.25]
[1645862402755,16.2879,92.17,92.047,112.16292427]
[1645862402958,16.2879,92.17,92.048,4.592]
[1645862403161,16.2879,92.17,92.049,109.3]
[1645862403364,16.2879,92.17,92.051,109.3]
[1645862403656,16.2879,92.17,92.052,4.592]
[1645862403860,16.2879,92.17,92.052,19.9054296]
[1645862404156,16.2879,92.17,92.053,127.72635387]
[1645862404357,16.2879,92.17,92.054,4.342]
[1645862404556,16.2879,92.17,92.055,109.3]
[1645862404756,16.2879,92.17,92.055,124.8634296]
[1645862404957,16.2879,92.17,92.055,127.72635387]
[1645862405159,16.2879,92.17,92.057,109.3]
[1645862405359,16.2879,92.17,92.061,109.3]
[1645862405561,16.2879,92.17,92.062,4.342]
[1645862405760,16.2879,92.17,92.063,109.3]
[1645862405957,16.2879,92.17,92.064,4.342]
[1645862406359,16.2879,92.17,92.065,3.11292427]
[1645862406559,16.2879,92.17,92.07,16.2869]
[1645862406766,16.2879,92.17,92.071,4.592]
[1645862406959,16.2879,92.17,92.071,0.25]
[1645862407161,16.2879,92.17,92.071,4.592]
[1645862408659,6.75691679,92.194,92.081,47.95265779]
[1645862408861,16.286,92.19,92.081,47.95265779]
[1645862409061,4.341,92.189,92.081,47.95265779]
[1645862409260,6.7448804,92.189,92.081,47.95265779]
[1645862409462,2.4038804,92.189,92.081,47.95265779]
[1645862409661,6.7448804,92.188,92.081,47.95265779]
[1645862409861,4.2448804,92.188,92.081,47.95265779]
[1645862410062,16.286,92.19,92.081,47.95265779]
[1645862410263,4.341,92.189,92.081,50.81558206]
[1645862410461,16.2864,92.18,92.081,47.95265779]
[1645862410662,23.6535,92.198,92.082,0.25]
[1645862410864,4.341,92.197,92.082,25.16983443]
[1645862411062,23.6535,92.198,92.083,2.86292427]
[1645862411262,65.43,92.196,92.084,0.25]
[1645862411465,65.43,92.196,92.084,24.7248]
[1645862411663,2.4038804,92.214,92.085,2.86292427]
[1645862411862,2.4038804,92.214,92.085,27.7827587]
[1645862411863,4.34,92.213,92.085,27.7827587]
[1645862412065,4.34,92.213,92.086,4.34]
[1645862412263,2.4038804,92.212,92.086,7.20292427]
[1645862412462,16.2847,92.19,92.087,2.86292427]
[1645862412662,16.2847,92.19,92.088,4.341]
[1645862413063,16.2847,92.19,92.089,2.86292427]
[1645862416068,174.73,92.209,92.084,24.4748]
[1645862416266,2.39754318,92.189,92.084,24.4748]
[1645862416465,4.341,92.188,92.084,24.4748]
[1645862416866,2.39754318,92.187,92.084,24.4748]
[1645862417367,4.341,92.186,92.084,24.4748]
[1645862417567,16.2881,92.17,92.084,24.4748]
[1645862418773,113.641,92.184,92.084,24.4748]
[1645862418967,2.39754318,92.169,92.081,50.56764779]
[1645862419169,62.93,92.165,92.081,50.56764779]
[1645862419567,2.39754318,92.164,92.081,50.56764779]
[1645862420169,16.2911,92.15,92.081,50.56764779]
[1645862424374,16.2911,92.15,92.081,2.61499]
[1645862424574,16.2928,92.14,92.081,2.61499]
[1645862425372,4.342,92.16,92.081,2.61499]
[1645862425573,2.39754318,92.161,92.081,2.61499]
[1645862425773,16.2948,92.13,92.081,2.61499]
[1645862430179,16.2966,92.12,92.081,2.61499]
[1645862433083,16.2966,92.12,92.051,24.2944]
[1645862433283,2.39754318,92.119,92.032,24.8965]
[1645862433483,4.344,92.118,92.032,24.8965]
[1645862433682,2.39754318,92.119,92.032,24.8965]
[1645862433888,24.8054,92.129,92.032,24.8965]
[1645862434091,24.8054,92.129,92.033,51.68085]
[1645862434283,16.298,92.12,92.033,51.68085]
[1645862435302,16.298,92.12,92.034,24.6999]
[1645862435486,16.298,92.12,92.04,16.2959]
[1645862436286,16.2978,92.11,92.034,24.6999]
[1645862436490,2.39754318,92.119,92.034,24.6999]
[1645862436885,24.8054,92.129,92.034,24.6999]
[1645862437486,16.2994,92.1,92.034,24.6999]
[1645862440392,16.2994,92.1,92.032,24.8965]
[1645862441294,16.3013,92.09,92.032,24.8965]
[1645862442695,16.3013,92.09,92.0,39.7167]
[1645862442911,16.3031,92.08,92.0,39.7167]
[1645862443113,23.7315,92.089,92.0,23.4154]
[1645862443114,24.1632,92.088,92.0,23.4154]
[1645862443711,24.1632,92.088,92.001,58.25729259]
[1645862444612,16.3051,92.07,92.001,58.25729259]
[1645862445613,16.3051,92.07,92.0,23.4154]
[1645862446014,16.3063,92.06,91.982,2.86292427]
[1645862446215,16.3063,92.06,91.977,23.2253]
[1645862446616,16.3063,92.06,91.978,47.77490176]
[1645862446817,54.56,92.068,91.978,47.77490176]
[1645862447213,2.39754318,92.067,91.978,47.77490176]
[1645862448514,65.43,92.065,91.963,24.5643]
[1645862448716,4.347,92.064,91.963,24.5643]
[1645862448914,72.17454318,92.064,91.963,24.5643]
[1645862449117,111.69754318,92.063,91.963,24.5643]
[1645862449316,65.43,92.056,91.963,24.5643]
[1645862449515,16.3123,92.03,91.964,48.00806138]
[1645862451117,16.3136,92.02,91.94,16.3136]
[1645862451317,16.3136,92.02,91.944,23.4693]
[1645862451719,16.3136,92.02,91.945,2.86292427]
[1645862452118,16.3136,92.02,91.946,57.19349797]
[1645862452318,16.3136,92.02,91.945,2.86292427]
[1645862452519,16.3153,92.01,91.944,23.4693]
[1645862453319,16.3153,92.01,91.945,57.57789301]
[1645862455320,16.313,92.03,91.946,2.86292427]
[1645862455521,16.313,92.03,91.946,44.22135062]
[1645862455821,23.72,92.038,91.947,22.1114011]
[1645862456020,23.72,92.038,91.947,24.97432537]
[1645862456220,22.5645,92.049,91.948,15.66651134]
[1645862456420,22.8016,92.048,91.95,16.3083]
[1645862456824,22.8016,92.048,91.951,15.66651134]
[1645862457022,22.8016,92.048,91.951,57.02493769]
[1645862457222,22.8016,92.048,91.952,15.66651134]
[1645862457521,22.8016,92.048,91.953,15.66651134]
[1645862457922,22.8016,92.048,91.954,15.66651134]
[1645862458324,22.8016,92.048,91.955,15.66651134]
[1645862458522,22.8016,92.048,91.96,16.3083]
[1645862458721,22.8016,92.048,91.961,52.55567021]
[1645862458924,22.8016,92.048,91.962,23.9072]
[1645862459225,16.3097,92.04,91.962,23.9072]
[1645862461024,22.8016,92.048,91.962,23.9072]
[1645862461225,27.1486,92.048,91.962,23.9072]
[1645862461425,2.39754318,92.047,91.962,23.9072]
[1645862461626,4.347,92.046,91.962,23.9072]
[1645862462529,16.3131,92.02,91.962,23.9072]
[1645862462925,8.62,92.026,91.935,2.86292427]
[1645862463126,23.4242,92.019,91.935,2.35905256]
[1645862463325,4.348,92.018,91.936,52.53020865]
[1645862463525,6.74558162,92.018,91.937,2.56613398]
[1645862463724,2.39758162,92.018,91.937,2.56613398]
[1645862464526,16.3186,91.99,91.937,2.56613398]
[1645862465927,16.3202,91.98,91.927,3.04530972]
[1645862467432,16.3202,91.98,91.912,2.89433941]
[1645862468031,16.3202,91.98,91.913,56.11308228]
[1645862468229,16.3202,91.98,91.914,2.31073026]
[1645862470732,113.65,92.007,91.914,2.31073026]
[1645862470932,16.3221,91.97,91.914,2.31073026]
[1645862471740,16.3221,91.97,91.915,52.33981752]
[1645862471938,16.3221,91.97,91.916,2.97666502]
[1645862473540,16.3207,91.99,91.916,2.97666502]
[1645862473743,54.395,92.02,91.918,3.01655309]
[1645862474141,54.395,92.02,91.919,22.1114011]
[1645862474342,2.39758162,92.039,91.921,2.6285195]
[1645862474540,16.3137,92.03,91.922,0.25]
[1645862474742,2.39758162,92.069,91.93,16.31]
[1645862474941,2.39758162,92.069,91.931,74.6601055]
[1645862475142,54.3714,92.06,91.932,112.3203509]
[1645862475344,54.3714,92.06,91.933,3.15467372]
[1645862475541,54.3714,92.06,91.933,38.11204188]
[1645862475740,2.39758162,92.059,91.934,16.1728061]
[1645862475943,26.8538,92.058,91.934,19.03573037]
[1645862476141,51.95318964,92.058,91.936,109.3]
[1645862476343,26.8538,92.058,91.937,2.3715971]
[1645862476567,174.73,92.056,91.937,18.33048843]
[1645862476764,16.312,92.03,91.938,5.40034753]
[1645862477163,16.312,92.03,91.939,2.86292427]
[1645862479263,16.312,92.03,91.938,2.53742326]
[1645862479467,16.312,92.03,91.931,71.99008051]
[1645862479664,16.312,92.03,91.932,2.29527468]
[1645862480064,24.9587,92.029,91.932,2.29527468]
[1645862481768,16.3137,92.02,91.932,2.29527468]
[1645862483671,24.9587,92.029,91.933,22.98099204]
[1645862483869,24.9587,92.029,91.934,2.78751068]
[1645862484070,24.9587,92.029,91.935,109.3]
[1645862484270,24.9587,92.029,91.936,0.25]
[1645862484470,16.3117,92.04,91.936,0.25]
[1645862484671,16.3117,92.04,91.937,109.3]
[1645862484869,16.3117,92.04,91.938,2.86780598]
[1645862485071,16.3117,92.04,91.938,22.98587375]
[1645862485271,16.3117,92.04,91.939,2.30867685]
[1645862485469,16.3117,92.04,91.94,0.25]
[1645862485672,16.3117,92.04,91.94,3.11292427]
[1645862486070,24.7405,92.048,91.941,2.86292427]
[1645862486271,24.7405,92.048,91.943,2.49445384]
[1645862486471,24.7405,92.048,91.944,3.13322631]
[1645862486670,24.7405,92.048,91.945,50.19273181]
[1645862486871,24.7405,92.048,91.946,0.25]
[1645862487071,24.7405,92.048,91.946,3.36846774]
[1645862487271,24.7405,92.048,91.946,6.23139201]
[1645862487473,24.7405,92.048,91.947,112.16292427]
[1645862487774,24.7405,92.048,91.946,3.36846774]
[1645862487775,24.7405,92.048,91.951,109.3]
[1645862487972,24.7405,92.048,91.952,2.57907561]
[1645862488173,24.7405,92.048,91.952,2.86292427]
[1645862488375,24.7405,92.048,91.953,2.86292427]
[1645862489473,24.7405,92.048,91.96,16.3085]
[1645862489673,24.7405,92.048,91.961,53.06192375]
[1645862489874,24.7405,92.048,91.963,3.03383391]
[1645862492277,16.3103,92.04,91.963,3.03383391]
[1645862498380,24.7405,92.048,91.963,3.03383391]
[1645862498582,16.3079,92.06,91.964,2.86292427]
[1645862498990,24.62692311,92.076,91.965,109.55]
[1645862499188,72.03932311,92.076,91.966,3.01218261]
[1645862499387,72.03932311,92.076,91.967,109.55]
[1645862499587,72.03932311,92.076,91.968,2.5128143]
[1645862499787,97.13871275,92.076,91.969,0.25]
[1645862499986,4.346,92.075,91.969,0.25]
[1645862500486,4.346,92.075,91.97,2.86292427]
[1645862500487,16.3052,92.07,91.97,2.86292427]
[1645862500689,16.3052,92.07,91.971,0.25]
[1645862501092,16.3052,92.07,91.972,2.86292427]
[1645862502088,16.3052,92.07,91.973,48.4082]
[1645862502288,16.3052,92.07,91.974,2.41872084]
[1645862502490,16.3052,92.07,91.975,43.64559883]
[1645862502808,16.3052,92.07,91.976,2.25823936]
[1645862503091,16.3052,92.07,91.976,5.12116363]
[1645862503890,16.3052,92.07,91.977,2.86292427]
[1645862504488,16.3052,92.07,91.977,5.20556788]
[1645862504890,16.3052,92.07,91.978,2.86292427]
[1645862505492,47.4124,92.076,91.979,0.25]
[1645862505692,47.4124,92.076,91.981,109.3]
[1645862505896,47.4124,92.076,91.982,3.00466881]
[1645862506097,47.4124,92.076,91.982,5.86759308]
[1645862506293,47.4124,92.076,91.983,122.88667787]
[1645862506494,47.4124,92.076,91.984,2.25020635]
[1645862506695,47.4124,92.076,91.985,109.3]
[1645862506896,47.4124,92.076,91.987,109.3]
[1645862507093,47.4124,92.076,91.988,2.45833612]
[1645862507295,47.4124,92.076,91.99,109.3]
[1645862507494,47.4124,92.076,91.991,2.55506071]
[1645862507893,47.4124,92.076,91.991,5.41798498]
[1645862508095,16.3026,92.09,91.991,5.41798498]
[1645862508294,16.3026,92.09,91.992,112.16292427]
[1645862508695,16.3026,92.09,91.995,2.61838865]
[1645862509095,16.3026,92.09,91.996,2.86292427]
[1645862510315,16.3026,92.09,91.999,2.70808662]
[1645862510697,16.3026,92.09,92.0,2.86292427]
[1645862511297,22.8445,92.103,92.0,2.86292427]
[1645862511795,22.8445,92.103,92.001,111.98518685]
[1645862511995,22.8445,92.103,92.002,2.53007306]
[1645862512195,22.8445,92.103,92.004,109.3]
[1645862512396,22.8445,92.103,92.005,3.07475184]
[1645862512896,22.8445,92.103,92.008,2.32728102]
[1645862513096,22.8445,92.103,92.009,0.25]
[1645862513495,16.2998,92.1,92.01,109.3]
[1645862513700,16.2998,92.1,92.011,2.68546615]
[1645862515298,16.2998,92.1,92.011,2.43546615]
[1645862515500,16.3012,92.09,92.011,2.43546615]
[1645862515698,24.8599,92.089,92.011,2.43546615]
[1645862516698,2.39758162,92.088,92.011,2.43546615]
[1645862516900,24.8599,92.089,92.011,2.43546615]
[1645862517598,16.3032,92.08,92.011,2.43546615]
[1645862520500,24.8599,92.089,92.011,2.43546615]
[1645862527529,109.3,92.088,92.011,2.43546615]
[1645862527830,1.37307313,92.085,91.925,111.90188004]
[1645862528028,4.347,92.084,91.955,23.6024]
[1645862528229,174.73,92.083,91.956,2.70240105]
[1645862528429,16.3148,92.01,91.956,2.70240105]
[1645862528828,16.3148,92.01,91.926,2.69970049]
[1645862529030,16.3148,92.01,91.927,2.43172638]
[1645862529434,16.3148,92.01,91.928,52.75681002]
[1645862529733,22.5257,92.009,91.929,3.0985196]
[1645862530331,16.3162,92.0,91.93,16.3153]
[1645862530531,16.3162,92.0,91.931,2.25020314]
[1645862534735,16.3141,92.02,91.931,111.55020314]
[1645862534937,18.28977354,92.061,91.931,111.55020314]
[1645862534938,4.348,92.074,91.943,109.3]
[1645862535138,48.3174,92.073,91.947,109.3]
[1645862535340,48.3174,92.073,91.951,109.3]
[1645862535640,48.3174,92.073,91.952,2.62040595]
[1645862535836,48.3174,92.073,91.953,109.3]
[1645862536037,48.3174,92.073,91.954,3.08282284]
[1645862536436,16.3043,92.07,91.96,16.3035]
[1645862536638,16.3043,92.07,91.961,214.71184105]
[1645862536837,16.3043,92.07,91.962,2.87467862]
[1645862537040,16.3043,92.07,91.963,0.25]
[1645862537240,16.3043,92.07,91.964,2.27539789]
[1645862537442,16.3043,92.07,91.965,109.55]
[1645862537639,16.3043,92.07,91.966,2.7802964]
[1645862537839,16.3043,92.07,91.967,0.25]
[1645862538040,16.3043,92.07,91.968,2.29610055]
[1645862538240,16.3043,92.07,91.969,109.55]
[1645862538439,16.3043,92.07,91.97,2.55901451]
[1645862538640,16.3043,92.07,91.971,0.25]
[1645862538840,16.3043,92.07,91.972,2.62228034]
[1645862539041,16.3043,92.07,91.976,109.3]
[1645862539242,16.3043,92.07,91.977,2.73112061]
[1645862539643,16.3043,92.07,91.979,2.58909732]
[1645862539842,16.3043,92.07,91.981,109.3]
[1645862540040,16.3043,92.07,91.982,2.71195626]
[1645862540242,0.70479787,107.04,91.994,65.43]
[1645862540243,77.3011,92.199,91.994,65.43]
[1645862540447,81.3564,92.185,92.008,109.3]
[1645862540642,16.5451,92.233,92.043,5.0]
[1645862540643,1.67718896,92.233,92.043,5.0]
[1645862540843,292.6199,92.256,92.047,174.73]
[1645862540844,71.3564,92.232,92.047,174.73]
[1645862541044,4.341,92.231,92.049,174.73]
[1645862541243,16.2818,92.21,92.073,109.3]
[1645862541445,4.341,92.209,92.074,3.1487083]
[1645862541647,109.3,92.211,92.076,2.4527815]
[1645862541845,10.79861223,92.208,92.076,2.4527815]
[1645862542042,5.92051712,92.207,92.077,4.34]
[1645862542248,1.64570829,92.206,92.079,2.75361035]
[1645862542444,16.286,92.19,92.08,109.3]
[1645862542644,16.286,92.19,92.081,3.27280421]
[1645862542846,16.286,92.19,92.082,4.34]
[1645862543045,16.286,92.19,92.082,9.65452016]
[1645862543244,16.286,92.19,92.083,3.03791196]
[1645862543445,16.286,92.19,92.084,6.86273935]
[1645862543644,16.286,92.19,92.084,23.55422128]
[1645862543845,16.286,92.19,92.085,23.68289295]
[1645862544046,16.286,92.19,92.086,62.91522994]
[1645862544248,16.286,92.19,92.087,2.77145885]
[1645862544546,16.286,92.19,92.087,20.94001651]
[1645862544749,16.2871,92.18,92.088,3.11669462]
[1645862544948,4.341,92.189,92.088,3.11669462]
[1645862545150,1.72111195,92.203,92.088,3.11669462]
[1645862545348,1.75020415,92.206,92.088,3.11669462]
[1645862545949,16.2891,92.17,92.088,3.11669462]
[1645862546149,53.92384797,92.189,92.088,3.11669462]
[1645862546350,66.80162462,92.188,92.088,3.11669462]
[1645862546549,5.93445151,92.187,92.076,2.3539546]
[1645862546749,4.341,92.187,92.076,2.3539546]
[1645862546949,4.341,92.188,92.076,2.3539546]
[1645862547150,6.21482179,92.188,92.076,2.3539546]
[1645862547352,54.3119,92.17,92.065,55.24152184]
[1645862547552,28.0671,92.169,92.066,2.58585819]
[1645862547752,23.7251,92.169,92.066,2.58585819]
[1645862547951,23.7251,92.169,92.061,2.78230732]
[1645862547952,1.86829334,92.167,92.061,2.78230732]
[1645862548152,4.342,92.166,92.047,2.65094818]
[1645862548353,16.2978,92.11,92.03,3.10844909]
[1645862548553,16.2978,92.11,92.021,6.96106024]
[1645862548752,16.2978,92.11,92.011,2.86292427]
[1645862548953,23.1521,92.109,92.023,2.48068864]
[1645862550056,16.2995,92.1,92.023,2.48068864]
[1645862552358,15.7995,92.1,92.023,2.48068864]
[1645862552954,16.3011,92.09,92.023,2.48068864]
[1645862553557,16.3011,92.09,92.011,9.48266147]
[1645862553757,16.3011,92.09,92.011,6.6197372]
[1645862554360,16.3011,92.09,92.012,54.48515314]
[1645862554559,16.3011,92.09,92.013,2.4660709]
[1645862555863,16.3028,92.08,92.013,2.4660709]
[1645862556264,1.47868011,92.102,92.013,2.4660709]
[1645862556465,4.345,92.101,92.013,2.4660709]
[1645862557568,54.3482,92.1,92.013,2.4660709]
[1645862557765,4.345,92.099,92.013,2.4660709]
[1645862558368,54.3482,92.1,92.013,2.4660709]
[1645862558570,16.3028,92.08,92.013,2.4660709]
[1645862565599,24.5148,92.098,92.013,2.4660709]
[1645862565799,4.345,92.134,92.016,2.3947792]
[1645862566005,4.344,92.158,92.017,0.25]
[1645862566202,4.344,92.164,92.018,109.3]
[1645862566399,4.344,92.164,92.019,3.34447334]
[1645862566805,4.344,92.164,92.021,2.73014509]
[1645862567100,4.344,92.164,92.022,0.25]
[1645862567299,72.7292,92.165,92.024,2.99657228]
[1645862567499,16.293,92.14,92.025,0.25]
[1645862567903,16.293,92.14,92.028,109.3]
[1645862568100,16.293,92.14,92.029,2.84419872]
[1645862568300,4.343,92.159,92.03,109.3]
[1645862568500,4.343,92.159,92.031,3.1191411]
[1645862568900,4.343,92.159,92.041,109.3]
[1645862569100,4.343,92.159,92.043,45.84728975]
[1645862569302,4.343,92.159,92.044,3.1595556]
[1645862569502,16.2905,92.15,92.044,3.1595556]
[1645862569701,16.2905,92.15,92.046,2.82344971]
[1645862569702,22.575,92.149,92.046,2.82344971]
[1645862570405,22.575,92.149,92.047,2.86292427]
[1645862571205,22.575,92.149,92.047,5.21262275]
[1645862571704,22.575,92.149,92.048,2.86292427]
[1645862574908,16.2921,92.14,92.048,2.86292427]
[1645862576410,16.294,92.13,92.048,2.86292427]
[1645862576628,1.3549472,92.148,92.047,2.34969848]
[1645862576809,4.343,92.147,92.047,2.34969848]
[1645862577511,16.2955,92.12,92.047,2.34969848]
[1645862578513,174.73,92.139,92.047,2.34969848]
[1645862578713,174.73,92.129,92.047,2.34969848]
[1645862578912,65.43,92.127,92.011,4.344]
[1645862579111,174.73,92.125,92.011,4.344]
[1645862579314,109.3,92.123,92.011,4.344]
[1645862579512,1.54684618,92.122,92.012,46.97783251]
[1645862579712,109.3,92.12,92.013,2.8750419]
[1645862579911,16.3027,92.08,92.013,2.8750419]
[1645862584020,16.3043,92.07,92.013,2.8750419]
[1645862584222,16.3043,92.07,92.011,4.344]
[1645862584923,65.43,92.089,91.997,2.61838701]
[1645862585122,16.3077,92.05,92.008,59.07601201]
[1645862585339,174.73,92.087,92.008,59.07601201]
[1645862585541,174.73,92.085,92.008,59.07601201]
[1645862585743,65.43,92.082,92.008,59.07601201]
[1645862585944,65.43,92.08,92.008,59.07601201]
[1645862586142,1.72076975,92.079,92.008,59.07601201]
[1645862586345,4.345,92.078,92.008,59.07601201]
[1645862586544,16.3094,92.04,92.008,59.07601201]
[1645862588146,16.3094,92.04,92.009,2.44463282]
[1645862588350,16.307,92.06,92.009,2.44463282]
[1645862588549,4.346,92.094,92.009,2.44463282]
[1645862588747,4.346,92.094,92.009,111.74463282]
[1645862588947,4.345,92.118,92.011,109.3]
[1645862589249,4.345,92.118,92.012,3.0812685]
[1645862589447,16.3002,92.1,92.012,5.94419277]
[1645862589647,16.3002,92.1,92.013,2.86292427]
[1645862590049,48.8995,92.119,92.015,109.3]
[1645862590352,16.2929,92.14,92.016,17.73922624]
[1645862590548,16.2929,92.14,92.017,112.31769296]
[1645862590752,16.2929,92.14,92.018,2.66759242]
[1645862590952,16.2929,92.14,92.018,17.50182515]
[1645862591252,16.2929,92.14,92.02,2.89553875]
[1645862591549,16.2929,92.14,92.021,17.947157]
[1645862591747,16.2929,92.14,92.023,2.80691498]
[1645862591948,16.2936,92.13,92.024,0.25]
[1645862592148,16.2936,92.13,92.024,3.11292427]
[1645862592557,16.2936,92.13,92.025,2.86292427]
[1645862592749,16.2936,92.13,92.026,0.25]
[1645862593151,16.2936,92.13,92.027,2.86292427]
[1645862593351,4.345,92.147,92.03,109.3]
[1645862593553,23.3001,92.172,92.031,3.21069852]
[1645862593751,23.3001,92.172,92.041,109.3]
[1645862593951,23.3001,92.172,92.042,3.12733486]
[1645862594152,23.3001,92.172,92.044,109.3]
[1645862594351,16.2882,92.16,92.045,3.00707802]
[1645862594554,16.2882,92.16,92.047,2.61636208]
[1645862594753,16.2882,92.16,92.048,0.25]
[1645862594951,16.2882,92.16,92.049,109.3]
[1645862595153,16.2882,92.16,92.05,2.56299409]
[1645862595352,16.2882,92.16,92.05,5.42591836]
[1645862595553,16.2882,92.16,92.052,2.41916074]
[1645862595854,16.2882,92.16,92.053,0.25]
[1645862596154,16.2882,92.16,92.053,3.11292427]
[1645862596354,16.2882,92.16,92.054,2.86292427]
[1645862596552,16.2882,92.16,92.055,0.25]
[1645862596952,16.2882,92.16,92.057,43.99165705]
[1645862597151,16.2882,92.16,92.06,16.2897]
[1645862597352,16.29,92.15,92.061,3.24413954]
[1645862597552,16.29,92.15,92.061,6.10706381]
[1645862597752,16.29,92.15,92.063,3.12366789]
[1645862598052,23.3001,92.172,92.062,2.86292427]
[1645862598256,23.3001,92.172,92.063,47.5953]
[1645862598453,23.3001,92.172,92.064,5.84036749]
[1645862599459,16.2883,92.16,92.07,16.29]
[1645862599657,16.2883,92.16,92.071,54.9668046]
[1645862599860,16.2883,92.16,92.072,2.35775916]
[1645862601262,16.2883,92.16,92.08,16.2888]
[1645862601459,16.2883,92.16,92.081,2.28589652]
[1645862604461,16.2883,92.16,92.081,111.58589652]
[1645862604660,23.3001,92.172,92.082,114.77187758]
[1645862604863,23.3001,92.172,92.083,3.10210941]
[1645862605060,23.3001,92.172,92.083,5.96503368]
[1645862605261,23.3001,92.172,92.084,109.3]
[1645862605461,47.1328,92.199,92.088,109.3]
[1645862605660,16.279,92.22,92.09,109.3]
[1645862605860,16.279,92.22,92.091,2.79907475]
[1645862606061,16.279,92.22,92.092,109.3]
[1645862606263,16.279,92.22,92.107,174.73]
[1645862606565,4.34,92.249,92.11,2.4967582]
[1645862606761,16.2757,92.24,92.111,0.25]
[1645862606960,4.339,92.239,92.118,2.76215028]
[1645862607162,4.339,92.239,92.119,0.25]
[1645862607364,4.339,92.239,92.12,174.73]
[1645862607565,16.2757,92.24,92.12,174.73]
[1645862607566,16.2757,92.24,92.124,174.73]
[1645862607764,16.2757,92.24,92.125,2.64311869]
[1645862607966,16.2757,92.24,92.126,174.73]
[1645862608166,16.2757,92.24,92.127,3.29899775]
[1645862608571,16.2757,92.24,92.129,109.3]
[1645862608767,16.2757,92.24,92.131,109.3]
[1645862608966,16.2757,92.24,92.132,2.52982318]
[1645862609170,16.2757,92.24,92.132,17.11405591]
[1645862609368,16.2757,92.24,92.134,2.71158274]
[1645862609769,16.2757,92.24,92.135,14.83423273]
[1645862609969,16.2757,92.24,92.136,2.95695742]
[1645862610169,16.2757,92.24,92.137,58.74925809]
[1645862610376,16.2757,92.24,92.138,2.25417859]
[1645862610576,16.2764,92.23,92.138,2.25417859]
[1645862610775,66.96666041,92.244,92.138,2.25417859]
[1645862610976,1.84741028,92.239,92.138,2.25417859]
[1645862611175,109.3,92.237,92.138,2.25417859]
[1645862611374,174.73,92.234,92.138,2.25417859]
[1645862611593,174.73,92.232,92.112,2.3831448]
[1645862611796,1.80468606,92.231,92.112,2.3831448]
[1645862611991,109.3,92.232,92.112,2.3831448]
[1645862612192,22.85381301,92.23,92.112,2.3831448]
[1645862612392,54.2803,92.21,92.112,47.19913129]
[1645862612595,48.5342,92.209,92.113,2.48659086]
[1645862612792,4.34,92.208,92.113,2.48659086]
[1645862613599,16.2845,92.18,92.113,2.48659086]
[1645862617303,16.2822,92.2,92.113,2.48659086]
[1645862620305,16.2827,92.19,92.113,2.48659086]
[1645862621306,16.2827,92.19,92.113,111.78659086]